Cogmind - Beta 16.1 @@@ ROGUE MODE // 2026.03.02 @ 19:41:33 // Winter2019/RPGLIKE Player: FAQ Result: Escaped! Performance ------------- Evolutions (9) 4500 Regions Visited (25) 5000 Robots Destroyed (225) 1125 Value Destroyed (18052) 18052 Prototype IDs (66) 1320 Alien Tech Used (0) 0 Bonus (20344) 20344 TOTAL SCORE: 50341 Bonus ------- High Alert Combat Kills 4015 Follower Combat Kills 5929 Hunted by Unchained 500 Entered Garrisons 1600 Used RIF Installer 5000 Aligned with FarCom 300 Win 3000 Cogmind --------- Core Integrity 875/1700 Matter 300/300 Energy 192/200 System Corruption 1% Temperature Cool (16) Movement Flying (27) Location To Epsilon Eridani Parts ------- > --- POWER (1) -------- Micro Antimatter Reactor > --- PROPULSION (6) --- Xenon Bombardment Thruster Cooled Nuclear Pulse Thruster Advanced Surge Thruster Impulse Thruster Array > --- UTILITY (10) ----- Structural Scanner Modified TNC Improved Melee Analysis Suite Advanced Reaction Control System System Shield Relay Coupler [NC] (62) Relay Coupler [Swarmer] (8) Relay Coupler [Grunt] (39) Relay Coupler [Brawler] (65) Relay Coupler [Sentry] (13) > --- WEAPON (4) ------- Advanced Remote Datajack Plasma Lance Enhanced Force Lance Enhanced Force Lance > --- INVENTORY (7) ---- Centrium Light Armor Plating Graphene Brace Authchip [R/Combat] Authchip [R/Combat] Relay Coupler [NC] (72) Relay Coupler [Grunt] (80) Relay Coupler [Duelist] (70) Peak State ------------ > --- POWER ------------ Light Antimatter Reactor > --- PROPULSION ------- Cooled Nuclear Pulse Thruster Impulse Thruster Advanced Surge Thruster Q-thruster Impulse Thruster Array > --- UTILITY ---------- Modified TNC Improved Melee Analysis Suite Advanced Reaction Control System Centrium Light Armor Plating System Shield Relay Coupler [NC] Relay Coupler [Swarmer] Relay Coupler [Grunt] Relay Coupler [Brawler] Relay Coupler [Sentry] > --- WEAPON ----------- Advanced Remote Datajack Plasma Lance Enhanced Force Lance Enhanced Force Lance > --- INVENTORY -------- Structural Scanner Graphene Brace Authchip [R/Combat] Authchip [R/Combat] Relay Coupler [NC] Relay Coupler [Grunt] Relay Coupler [Duelist] [Rating: 129] Favorites ----------- Power Micro Nuclear Core Engine Improved Ion Engine Power Core Micro Nuclear Core Reactor Light Antimatter Reactor Propulsion VTOL Module Wheel Compact Wheel Flight Unit VTOL Module Utility Relay Coupler [NC] Device Structural Scanner Processor Modified TNC Hackware Relay Coupler [NC] Protection Centrium Light Armor Plating Weapon Enhanced Force Lance Energy Gun Particle Gun Energy Cannon Advanced Beam Cannon Ballistic Gun Enhanced Autogun Ballistic Cannon Heavy Assault Cannon Launcher Mini Grenade Launcher Special Weapon Advanced Remote Datajack Impact Weapon Heavy Mace Slashing Weapon Ripper Piercing Weapon Enhanced Force Lance Special Melee Weapon Datajack Build | -11 -10 -10 -9 -9 -9 -8 -8 -8 -8 -7 -7 -6 -6 -6 -6 -5 -5 -4 -4 -3 -3 -3 -2 -2 -1 ------- Run | Yrd Mat Min Mat Min Exi Min Mat Gar Mat Fac Gar Fac Gar Fac Gar Fac Gar Fac Gar Res Gar Arm Res Gar Acc Slots Evolved 17 | 3 . 1 3 . . . . 1 . . 1 1 . 1 . 1 1 . 1 1 1 . . . 1 Power . | . . . . . . . . . . . . . . . . . . . . . . . . . . Propulsion 5 | 1 . . 2 . . . . . . . . 1 . . . . . . . . 1 . . . . Utility 9 | 1 . 1 1 . . . . 1 . . 1 . . . . 1 1 . 1 . . . . . 1 Weapon 3 | 1 . . . . . . . . . . . . . 1 . . . . . 1 . . . . . Parts Attached 117 | 4 2 1 9 1 1 . 5 3 2 3 7 1 8 6 4 1 16 3 5 6 11 5 2 5 6 Power 10 | . . . 2 . . . . 1 1 . . . 1 . . . . . . . 2 . . . 3 Engine 2 | . . . 2 . . . . . . . . . . . . . . . . . . . . . . Core 3 | . . . . . . . . 1 1 . . . 1 . . . . . . . . . . . . Reactor 5 | . . . . . . . . . . . . . . . . . . . . . 2 . . . 3 Propulsion 23 | 2 . . 4 . . . 1 . . . 2 1 2 . . 1 4 . . 1 1 . 1 2 1 Treads . | . . . . . . . . . . . . . . . . . . . . . . . . . . Leg . | . . . . . . . . . . . . . . . . . . . . . . . . . . Wheel 2 | 2 . . . . . . . . . . . . . . . . . . . . . . . . . Hover . | . . . . . . . . . . . . . . . . . . . . . . . . . . Flight 21 | . . . 4 . . . 1 . . . 2 1 2 . . 1 4 . . 1 1 . 1 2 1 Utility 59 | . 2 . 1 . 1 . 2 1 . 1 3 . 4 5 4 . 10 3 2 4 6 4 1 3 2 Device 6 | . 2 . . . . . . . . . . . . . . . . . . . 1 1 1 . 1 Storage . | . . . . . . . . . . . . . . . . . . . . . . . . . . Processor 7 | . . . . . 1 . 1 . . . . . . . . . 1 . 1 1 . 1 . 1 . Hackware 43 | . . . . . . . . 1 . 1 3 . 4 5 4 . 9 3 1 3 5 1 . 2 1 Protection 3 | . . . 1 . . . 1 . . . . . . . . . . . . . . 1 . . . Artifact . | . . . . . . . . . . . . . . . . . . . . . . . . . . Weapon 25 | 2 . 1 2 1 . . 2 1 1 2 2 . 1 1 . . 2 . 3 1 2 1 . . . Energy Gun 8 | 1 . 1 1 . . . . . 1 . . . . 1 . . . . 2 1 . . . . . Energy Cannon 2 | . . . . . . . 2 . . . . . . . . . . . . . . . . . . Ballistic Gun 2 | 1 . . . . . . . . . 1 . . . . . . . . . . . . . . . Ballistic Cannon 1 | . . . . . . . . . . . 1 . . . . . . . . . . . . . . Launcher 1 | . . . . . . . . 1 . . . . . . . . . . . . . . . . . Special Weapon 3 | . . . . . . . . . . 1 . . . . . . 1 . 1 . . . . . . Impact Weapon 1 | . . . 1 . . . . . . . . . . . . . . . . . . . . . . Slashing Weapon 3 | . . . . . . . . . . . 1 . 1 . . . . . . . 1 . . . . Piercing Weapon 3 | . . . . . . . . . . . . . . . . . 1 . . . 1 1 . . . Special Melee Weapon 1 | . . . . 1 . . . . . . . . . . . . . . . . . . . . . Unidentified Prototypes 4 | . . . 1 . . . . . 1 . . . . . . . . . . 1 . . 1 . . Parts Lost 8 | . . . . . . . . . . . 1 . . . . . 2 . . . 1 . 1 . 3 Power 2 | . . . . . . . . . . . . . . . . . . . . . . . 1 . 1 Propulsion 3 | . . . . . . . . . . . 1 . . . . . . . . . . . . . 2 Utility 1 | . . . . . . . . . . . . . . . . . 1 . . . . . . . . Weapon 2 | . . . . . . . . . . . . . . . . . 1 . . . 1 . . . . Highest Loss Streak 3 | . . . . . . . . . . . 1 . . . . . 1 . . . 1 . 1 . 3 To Critical Strikes 1 | . . . . . . . . . . . . . . . . . . . . . 1 . . . . Average Backups 4 | . 1 2 2 3 3 3 3 4 5 5 5 5 6 4 5 6 5 4 5 5 6 6 6 7 6 Power . | . . . . . . . . . . . . . . . . . . . . . . . . . . Propulsion . | . . . . . . . . . . . . . . . . . . . . . . . . . . Utility 2 | . . . . . . . . . 2 2 2 2 2 3 4 5 4 3 3 4 4 5 5 5 6 Weapon 1 | . 1 1 1 2 2 2 2 2 2 2 2 2 2 1 1 1 . 1 1 1 . . 1 1 . Tool/Special . | . . . . . . . . . . . . . . . . . . . . . . . . . . Unused Backups 18 | 2 . 2 2 . . . . . . . . . 1 . 2 . . . 1 . 1 . . 1 6 Power 2 | . . . 2 . . . . . . . . . . . . . . . . . . . . . . Propulsion 2 | 2 . . . . . . . . . . . . . . . . . . . . . . . . . Utility 11 | . . . . . . . . . . . . . 1 . 2 . . . 1 . 1 . . . 6 Weapon 3 | . . 2 . . . . . . . . . . . . . . . . . . . . . 1 . Tool/Special . | . . . . . . . . . . . . . . . . . . . . . . . . . . Average Slot Usage (%) 93 | . 95 88 84 81 85 90 88 100 96 99 96 96 99 96 99 93 94 90 92 90 92 92 94 94 92 Engine 2 | . 14 12 10 9 9 9 9 1 . . . . . . . . . . . . . . . . . Core 3 | . . . . . . . . 7 8 8 7 7 7 6 5 6 5 4 5 5 . . . . . Reactor 1 | . . . . . . . . . . . . . . . . . . . . . 4 5 5 5 4 Wheel 4 | . 28 25 20 . . . . . . . . . . . . . . . . . . . . . . Flight 22 | . . . 4 36 36 36 34 35 30 32 31 28 34 32 33 31 28 23 22 21 22 24 25 25 21 Device 9 | . 23 25 21 18 18 18 18 17 15 11 7 7 7 5 6 6 3 . . 3 2 4 13 8 7 Processor 8 | . . . . . 4 9 11 17 16 16 15 14 14 7 6 6 6 11 11 10 10 8 5 7 9 Hackware 19 | . . . . . . . . . 8 12 16 22 21 24 26 25 31 31 33 32 32 25 20 24 27 Protection 1 | . . . 5 . . . . . . . . . . . . . . . . . . 3 5 4 1 Energy Gun 6 | . 28 25 19 18 13 18 13 . 2 3 . . . 4 5 6 . . 5 5 2 . . . . Energy Cannon 1 | . . . . . . . 1 16 13 8 5 7 . . . . . . . . . . . . . Special Weapon 3 | . . . . . . . . . . 1 1 2 2 5 6 6 4 5 5 5 5 5 5 4 4 Slashing Weapon 2 | . . . . . . . . . . . 1 2 6 6 6 6 4 5 . . 1 5 5 4 . Piercing Weapon 3 | . . . . . . . . . . . . . . . . . . 5 4 5 9 10 10 10 14 Peak Build Rating 129 | 5 7 8 15 13 19 19 26 29 31 33 37 40 49 60 59 64 86 86 89 102 117 125 126 126 129 Average Rating 60 | 4 6 7 11 12 15 19 19 26 28 32 33 38 42 53 57 63 68 82 84 94 109 119 122 122 118 On Entrance 51 | 3 5 7 8 13 13 19 19 26 29 31 33 37 39 49 57 59 64 86 80 89 94 117 116 122 125 Avg Prop Armor Cover (%) 2 | . . . 2 . . . . . . . . . . . . . 2 . . . . . . . 8 Naked Turns . | . . . . . . . . . . . . . . . . . . . . . . . . . . Heaviest Build 43 | 8 10 12 22 15 15 15 17 17 15 15 19 14 14 19 19 19 21 21 25 26 34 37 41 43 42 Greatest Support 54 | 32 32 37 37 21 21 21 22 22 22 22 22 24 31 31 31 34 38 38 38 40 46 51 54 54 53 Greatest Overweight (x) 1 | 1 . . . . . . . . . . . . . . . . . . . . . . . . 1 Average Overweight (x) . | . . . . . . . . . . . . . . . . . . . . . . . . . . Largest Inventory Capacity 7 | 2 2 2 3 3 3 3 4 5 5 6 6 6 6 6 6 6 7 7 7 7 7 7 7 7 7 Average Capacity 5 | 2 2 2 2 3 3 3 3 4 5 5 6 6 6 6 6 6 6 7 7 7 7 7 7 7 7 Most Carried 7 | 1 2 2 3 3 3 3 4 5 5 6 6 6 6 6 6 6 7 6 7 7 7 7 7 7 7 Average Carried 4 | . 1 2 2 3 3 3 3 4 5 5 5 5 5 4 5 5 5 4 5 5 6 6 6 6 6 Final Capacity 7 | 2 2 2 3 3 3 3 4 5 5 6 6 6 6 6 6 6 7 7 7 7 7 7 7 7 7 Final Carried 7 | 1 2 2 3 3 3 3 4 5 5 6 6 6 6 5 6 6 6 5 7 7 6 7 7 7 7 Class Distribution -------------------- 30% | Botlord-Scout 18% | Wizard-Scout 17% | Hacker-Scout 11% | Commander-Scout 10% | Hacker-Mutant 9% | Mutant Dominant Class ---------------- Mutant | -10/Materials Mutant | -10/Mines Hacker-Mutant | -9/Materials Hacker-Sprinter | -9/Mines Hacker-Sprinter | -9/Exiles Hacker-Scout | -8/Mines Hacker-Scout | -8/Materials Hacker-Scout | -8/Garrison Hacker-Scout | -8/Materials Hacker-Scout | -7/Factory Hacker-Scout | -7/Garrison Hacker-Scout | -6/Factory Hacker-Scout | -6/Garrison Wizard-Scout | -6/Factory Wizard-Scout | -6/Garrison Wizard-Scout | -5/Factory Commander-Scout | -5/Garrison Commander-Scout | -4/Factory Botlord-Scout | -4/Garrison Botlord-Scout | -3/Research Botlord-Scout | -3/Garrison Botlord-Scout | -3/Armory Botlord-Scout | -2/Research Botlord-Scout | -2/Garrison Botlord-Scout | -1/Access Resources | -11 -10 -10 -9 -9 -9 -8 -8 -8 -8 -7 -7 -6 -6 -6 -6 -5 -5 -4 -4 -3 -3 -3 -2 -2 -1 ----------- Run | Yrd Mat Min Mat Min Exi Min Mat Gar Mat Fac Gar Fac Gar Fac Gar Fac Gar Fac Gar Res Gar Arm Res Gar Acc Matter Collected 4915 | 240 20 10 150 . . 50 40 120 30 167 628 . 498 382 215 74 360 77 235 189 396 384 80 270 300 Remotely . | . . . . . . . . . . . . . . . . . . . . . . . . . . Salvage Created 9830 | 100 528 148 1337 . . 53 48 215 . 200 305 . 300 848 361 116 132 214 771 600 1400 421 141 1069 523 Parts 497 | 3 34 14 71 . . . 3 7 . 10 14 4 24 32 27 1 13 7 45 61 54 6 7 43 17 Haulers Intercepted 7 | . 1 . 3 . . . 1 . . . . . . 2 . . . . . . . . . . . Recyclers Shooed 2 | . 1 . . . . . . . . . . . . 1 . . . . . . . . . . . Parts Field Recycled . | . . . . . . . . . . . . . . . . . . . . . . . . . . Retrieved Matter . | . . . . . . . . . . . . . . . . . . . . . . . . . . Parts Self-Destructed . | . . . . . . . . . . . . . . . . . . . . . . . . . . Prevented . | . . . . . . . . . . . . . . . . . . . . . . . . . . Parts Restored . | . . . . . . . . . . . . . . . . . . . . . . . . . . Kills | -11 -10 -10 -9 -9 -9 -8 -8 -8 -8 -7 -7 -6 -6 -6 -6 -5 -5 -4 -4 -3 -3 -3 -2 -2 -1 ------- Run | Yrd Mat Min Mat Min Exi Min Mat Gar Mat Fac Gar Fac Gar Fac Gar Fac Gar Fac Gar Res Gar Arm Res Gar Acc Combat Hostiles Destroyed 193 | . 11 7 26 . . 1 . 6 . 7 18 1 11 11 9 1 5 2 15 10 21 4 2 19 6 Melee 90 | . . . . . . . . . . . . 1 5 3 2 1 5 2 11 10 19 4 2 19 6 Guns 56 | . 11 7 24 . . 1 . . . 1 3 . . 6 1 . . . 2 . . . . . . Cannons 9 | . . . . . . . . 3 . 5 1 . . . . . . . . . . . . . . AOE 32 | . . . . . . . . 3 . . 14 . 6 2 6 . . . 1 . . . . . . Classes Destroyed 16 | 2 5 . 4 . . . . . . 2 . . . . . . . . . . 1 . . 1 1 Worker 5 | . . . 2 . . . . . . . . . . 3 . . . . . . . . . . . Builder 2 | . 1 . . . . . . . . . . . . 1 . . . . . . . . . . . Tunneler 1 | 1 . . . . . . . . . . . . . . . . . . . . . . . . . Hauler 7 | . 1 . 3 . . . 1 . . . . . . 2 . . . . . . . . . . . Recycler 1 | 1 . . . . . . . . . . . . . . . . . . . . . . . . . Operator 2 | . . . 2 . . . . . . . . . . . . . . . . . . . . . . Watcher 14 | . 3 . 5 . . . . . . . . . . 3 . 1 . . . 1 . . . . 1 Swarmer 32 | . 2 1 6 . . . . . . . 7 . 3 3 2 . 2 . 1 . . . . 3 2 Cutter 5 | . . . . . . . . . . . . . . . . . . . . . . . . 5 . Grunt 92 | . 9 6 12 . . 1 . 5 . 2 10 . 4 5 4 1 1 . 3 1 18 3 . 6 1 Brawler 4 | . . . 1 . . . . 1 . . . . . 1 . . . . 1 . . . . . . Duelist 1 | . . . . . . . . . . . . . . . . . . . . . 1 . . . . Sentry 20 | . . . 7 . . . . . . 1 1 . 1 1 2 . . . 3 . 2 . 1 1 . Hunter 16 | . . . . . . . . . . 3 . . . 1 . . . 2 3 2 . . 1 4 . Programmer 22 | . . . . . . . . . . 1 . 1 3 . 1 . 2 . 4 7 . 1 . . 2 Behemoth 1 | . . . . . . . . . . . . . . . . . . . . . . . . . 1 Best Kill Streak 11 | 2 3 2 4 . . 1 1 3 . 2 8 1 3 7 4 1 2 2 3 4 4 2 2 11 2 Combat Bots Only 11 | . 3 2 4 . . 1 . 3 . 2 8 1 3 3 4 1 2 2 3 3 4 2 2 11 2 Max Kills in Single Turn 3 | 1 1 1 2 . . 1 1 2 . 1 3 1 2 3 1 1 1 1 1 1 1 1 1 1 1 Gunslinging 1 | . . . 1 . . . . . . . . . . . . . . . . . . . . . . Exploded 3 | . . . . . . . . 2 . . 3 . 2 1 1 . . . 1 . . . . . . Melee 1 | . . . . . . . . . . . . 1 1 1 1 1 1 1 1 1 1 1 1 1 1 Uniques/NPCs Destroyed . | . . . . . . . . . . . . . . . . . . . . . . . . . . Combat | -11 -10 -10 -9 -9 -9 -8 -8 -8 -8 -7 -7 -6 -6 -6 -6 -5 -5 -4 -4 -3 -3 -3 -2 -2 -1 -------- Run | Yrd Mat Min Mat Min Exi Min Mat Gar Mat Fac Gar Fac Gar Fac Gar Fac Gar Fac Gar Res Gar Arm Res Gar Acc Hostile Shots Fired 1437 | . 42 25 87 . . 22 . 9 . 60 154 12 16 85 176 14 75 7 84 78 178 24 6 245 38 Missed 598 | . 10 5 21 . . 7 . 4 . 26 64 3 6 37 70 4 26 3 32 38 79 14 5 127 17 Hits 839 | . 32 20 66 . . 15 . 5 . 34 90 9 10 48 106 10 49 4 52 40 99 10 1 118 21 Melee 8 | . . . 1 . . . . . . . . . . . . . . . . . . . . 7 . Projectile 831 | . 32 20 65 . . 15 . 5 . 34 90 9 10 48 106 10 49 4 52 40 99 10 1 111 21 AOE 3 | . . . . . . . . . . . . . . . 1 . . 1 . . . 1 . . . Critical Strikes 42 | . 1 1 4 . . 3 . . . . 1 1 . 3 1 1 1 . 2 2 6 2 . 10 3 Part Disruptions 2 | . . . . . . . . . . . . . . . . . 1 . . . . . . . 1 Damage Taken 13819 | . 377 271 839 . . 254 . 420 . 421 1084 131 172 674 1104 187 862 143 851 976 1808 282 18 2291 654 Core 11065 | . 301 221 624 . . 213 . 347 . 349 886 112 145 554 901 152 699 122 704 825 1470 228 14 1657 541 Absorbed by Shields 315 | . . . . . . . . . . . . . . . 35 . 17 . 46 . 86 52 . 79 . Redirected to Core 8347 | . 247 167 498 . . 142 . 264 . 235 636 70 92 416 685 112 555 75 518 555 1158 175 14 1308 425 Ignored by Resistances 1133 | . . . . . . . . . . . . . 10 96 160 23 85 14 72 17 266 35 3 281 71 Regen/Repaired (Parts) 261 | . . . . . . . 35 . 44 25 . 72 . 44 6 . 16 19 . . . . . . . Core Remaining (%) 73 | 100 . 93 . . . 49 . . 42 . 21 . . . 100 . 92 . 90 . . 98 . 69 51 Volleys Fired 549 | 6 58 19 81 . . 6 1 17 . 40 51 9 14 55 17 8 26 5 34 4 37 17 4 20 20 Largest 2 | 2 2 2 2 . . 2 2 2 . 2 2 1 2 1 1 1 1 1 2 1 1 1 1 1 1 Hottest 136 | 90 90 115 130 . . 130 130 136 . 123 93 5 93 88 88 5 88 7 125 10 75 10 10 10 10 Shots Fired 768 | 12 111 38 158 . . 12 2 30 . 62 64 9 15 56 19 8 26 5 38 6 36 17 4 20 20 Gun 452 | 12 111 38 158 . . 12 2 . . 28 23 . 1 29 3 . 1 . 15 2 17 . . . . Cannon 61 | . . . . . . . . 25 . 22 13 . 1 . . . . . . . . . . . . Launcher 49 | . . . . . . . . 5 . . 15 . 13 4 11 . 1 . . . . . . . . Special 206 | . . . . . . . . . . 12 13 9 . 23 5 8 24 5 23 4 19 17 4 20 20 Kinetic 27 | . . . . . . . . . . 3 23 . 1 . . . . . . . . . . . . Thermal 452 | 12 111 38 158 . . 12 2 25 . 47 13 . 1 29 3 . 1 . . . . . . . . Explosive 49 | . . . . . . . . 5 . . 15 . 13 4 11 . 1 . . . . . . . . Electromagnetic 34 | . . . . . . . . . . . . . . . . . . . 15 2 17 . . . . Robot Hit Streak 41 | 7 20 17 17 . . 12 4 8 . 12 10 12 4 19 9 9 11 6 25 30 41 24 3 10 6 Robot Miss Streak 3 | 2 3 1 3 . . 1 . 2 . 2 2 2 1 2 1 2 1 . 1 . 2 . 1 1 3 Penetration Max . | . . . . . . . . . . . . . . . . . . . . . . . . . . Secondary Targets 2 | . . . 2 . . . . . . . . . . . . . . . . . . . . . . Max Gunslinging Chain 1 | . . . 1 . . . . . . . . . . . . . . . . . . . . . . Shots Hit Robots 908 | 9 79 31 107 1 4 10 2 14 1 51 39 16 11 70 55 12 41 9 67 28 97 32 7 86 29 Core Hits 396 | 3 32 15 54 . . 5 1 11 . 13 41 1 28 33 27 3 11 4 20 10 42 5 2 28 7 Critical Kills 2 | . . . . . . . . . . . . . . 2 . . . . . . . . . . . Critical Parts Destroyed 2 | . . . . . . . . . . . . . . 2 . . . . . . . . . . . Critical Strikes 90 | . 5 3 10 . . . . . . 1 . . 2 8 8 1 3 . 9 6 24 1 . 6 3 Burn 19 | . 5 3 10 . . . . . . 1 . . . . . . . . . . . . . . . Destroy 4 | . . . . . . . . . . . . . . 4 . . . . . . . . . . . Corrupt 3 | . . . . . . . . . . . . . . . . . . . 2 . 1 . . . . Sever 33 | . . . . . . . . . . . . . 2 4 8 1 2 . 1 . 12 1 . 2 . Impale 31 | . . . . . . . . . . . . . . . . . 1 . 6 6 11 . . 4 3 Melee Attacks 492 | . . . 3 1 4 . . . 1 . 7 11 23 28 64 10 30 8 42 29 90 27 10 82 22 Impact 3 | . . . 3 . . . . . . . . . . . . . . . . . . . . . . Slashing 216 | . . . . . . . . . . . 7 11 23 28 64 10 27 1 4 . 28 5 2 6 . Piercing 267 | . . . . . . . . . . . . . . . . . 3 7 38 29 62 22 8 76 22 Sneak Attacks 45 | . . . . 1 4 . . . 1 . . 2 4 2 3 . 3 . 5 3 10 1 1 4 1 Combat Hostiles 22 | . . . . . . . . . . . . 1 1 . 3 . 1 . . 2 7 1 1 4 1 Follow-up Attacks 44 | . . . . . . . . . . . . . . . . . . 1 3 . 15 2 1 18 4 Damage Inflicted 28526 | 106 935 400 1660 . . 156 34 542 . 805 1935 369 1487 2114 3138 278 1145 173 2303 1351 3208 729 287 4398 973 Guns 5338 | 106 935 400 1660 . . 156 34 . . 404 284 . . 702 60 . . . 249 . 348 . . . . Cannons 809 | . . . . . . . . 265 . 401 123 . 20 . . . . . . . . . . . . Explosions 4455 | . . . . . . . . 277 . . 1495 . 1017 408 847 . 283 . 128 . . . . . . Melee 17798 | . . . . . . . . . . . 33 369 450 1004 2162 278 805 173 1926 1351 2860 729 287 4398 973 Ramming 126 | . . . . . . . . . . . . . . . 69 . 57 . . . . . . . . Kinetic 323 | . . . . . . . . . . 39 284 . . . . . . . . . . . . . . Thermal 5355 | 106 935 400 1660 . . 156 34 265 . 766 123 . 20 702 60 . . . 128 . . . . . . Explosive 4327 | . . . . . . . . 277 . . 1495 . 1017 408 847 . 283 . . . . . . . . Electromagnetic 597 | . . . . . . . . . . . . . . . . . . . 249 . 348 . . . . Impact . | . . . . . . . . . . . . . . . . . . . . . . . . . . Slashing 5913 | . . . . . . . . . . . 33 369 450 1004 2162 278 753 36 102 . 553 21 25 127 . Piercing 11885 | . . . . . . . . . . . . . . . . . 52 137 1824 1351 2307 708 262 4271 973 Highest Corruption 13 | . . . . . . . . 1 1 . . 1 1 1 2 . 3 . 9 8 9 13 . . 1 Average Corruption 4 | . . . . . . . . 1 1 . . 1 1 1 1 . 2 . 5 5 8 10 . . 1 Corruption Purged . | . . . . . . . . . . . . . . . . . . . . . . . . . . Corruption Blocked . | . . . . . . . . . . . . . . . . . . . . . . . . . . Effects 122 | . . . . . . . . 4 . . . 1 2 9 11 . 3 . 17 11 41 23 . . . Message Errors 28 | . . . . . . . . 1 . . . . 1 3 1 . . . 3 1 11 7 . . . Matter Fused 30 | . . . . . . . . . . . . . . 2 3 . 1 . 2 4 13 5 . . . Heat Flow Errors 18 | . . . . . . . . . . . . . . . 1 . . . 7 1 7 2 . . . Energy Discharges 15 | . . . . . . . . 1 . . . 1 1 1 . . 1 . 1 2 4 3 . . . Parts Rejected 4 | . . . . . . . . . . . . . . . 1 . . . . 1 1 1 . . . Parts Fused 1 | . . . . . . . . . . . . . . . . . . . . . . 1 . . . Data Loss (minor) 11 | . . . . . . . . 1 . . . . . 2 1 . . . 2 . 2 3 . . . Data Loss (major) 3 | . . . . . . . . . . . . . . . 1 . . . . . 2 . . . . Misfires 7 | . . . . . . . . 1 . . . . . 1 2 . . . 1 2 . . . . . Alerts 3 | . . . . . . . . . . . . . . . 1 . 1 . 1 . . . . . . Misdirections 1 | . . . . . . . . . . . . . . . . . . . . . . 1 . . . Weapon Failures 1 | . . . . . . . . . . . . . . . . . . . . . 1 . . . . Overload Shots . | . . . . . . . . . . . . . . . . . . . . . . . . . . Overflow Damage 1806 | . . . . . . . . . . . 27 34 55 38 151 20 60 . 323 448 268 68 . 164 150 Projectiles . | . . . . . . . . . . . . . . . . . . . . . . . . . . Explosions 40 | . . . . . . . . . . . 19 . 17 4 . . . . . . . . . . . Melee 1766 | . . . . . . . . . . . 8 34 38 34 151 20 60 . 323 448 268 68 . 164 150 Knockbacks . | . . . . . . . . . . . . . . . . . . . . . . . . . . Impact . | . . . . . . . . . . . . . . . . . . . . . . . . . . Kinetic . | . . . . . . . . . . . . . . . . . . . . . . . . . . Secondary . | . . . . . . . . . . . . . . . . . . . . . . . . . . Self-Inflicted Damage 207 | . . . . . . . . 65 . . 16 . . . 69 . 57 . . . . . . . . Shots 3 | . . . . . . . . 2 . . 1 . . . . . . . . . . . . . . Rammed . | . . . . . . . . . . . . . . . . . . . . . . . . . . Targets Rammed . | . . . . . . . . . . . . . . . . . . . . . . . . . . Kicked . | . . . . . . . . . . . . . . . . . . . . . . . . . . Crushed . | . . . . . . . . . . . . . . . . . . . . . . . . . . Highest Temperature 387 | 60 84 66 165 . . 387 36 314 . 242 144 . 50 332 186 6 38 . 252 165 302 247 7 20 . Average Temperature 75 | 27 25 19 39 . . 203 21 113 . 89 51 . 20 133 52 4 18 . 56 52 92 93 4 6 . Received Heat Transfer 3162 | . 198 162 339 . . 189 . 45 . 90 369 18 24 234 283 108 62 9 87 24 560 46 . 306 9 Effects 1 | . . . . . . 1 . . . . . . . . . . . . . . . . . . . Energy Bleed 1 | . . . . . . 1 . . . . . . . . . . . . . . . . . . . Siege Activations . | . . . . . . . . . . . . . . . . . . . . . . . . . . Martial Activations . | . . . . . . . . . . . . . . . . . . . . . . . . . . Shielding Activations . | . . . . . . . . . . . . . . . . . . . . . . . . . . Robots Disrupted . | . . . . . . . . . . . . . . . . . . . . . . . . . . Combat Hostiles . | . . . . . . . . . . . . . . . . . . . . . . . . . . Robots Corrupted 3 | . . . . . . . . . . . . . . . . . . . 1 . 2 . . . . Combat Hostiles 3 | . . . . . . . . . . . . . . . . . . . 1 . 2 . . . . Parts Fried 7 | . . . . . . . . . . . . . . . . . . . 3 . 4 . . . . Impact Corruptions . | . . . . . . . . . . . . . . . . . . . . . . . . . . Robots Melted 3 | . . . 2 . . . . . . 1 . . . . . . . . . . . . . . . Combat Hostiles 3 | . . . 2 . . . . . . 1 . . . . . . . . . . . . . . . Parts Melted 33 | 1 6 7 14 . . 1 . 1 . 2 . . . . . . . 1 . . . . . . . Heat Transferred 12957 | 285 2826 1249 4847 . . 370 74 481 . 1517 222 . 37 925 74 . . . 50 . . . . . . Parts Sabotaged . | . . . . . . . . . . . . . . . . . . . . . . . . . . Parts Stolen . | . . . . . . . . . . . . . . . . . . . . . . . . . . Parts Stripped . | . . . . . . . . . . . . . . . . . . . . . . . . . . Power Chain Reactions 1 | . . . . . . . . . . . . . . . . . . . 1 . . . . . . Alert | -11 -10 -10 -9 -9 -9 -8 -8 -8 -8 -7 -7 -6 -6 -6 -6 -5 -5 -4 -4 -3 -3 -3 -2 -2 -1 ------- Run | Yrd Mat Min Mat Min Exi Min Mat Gar Mat Fac Gar Fac Gar Fac Gar Fac Gar Fac Gar Res Gar Arm Res Gar Acc Maximum Alert Level 5 | . . . 1 . . . . 1 . . 2 1 4 3 5 3 5 4 5 3 5 4 2 3 2 Low Security (%) 27 | 100 100 100 91 100 . 100 100 46 100 100 17 . 2 . . . . . . . . . . . . Level 1 7 | . . . 8 . . . . 53 . . 36 100 5 . . . . . . . . . 10 15 . Level 2 13 | . . . . . . . . . . . 45 . 23 13 2 . . 40 . . . . 89 58 100 Level 3 24 | . . . . . . . . . . . . . 32 86 26 100 10 25 15 100 31 56 . 26 . Level 4 17 | . . . . . . . . . . . . . 36 . 39 . 35 34 79 . 35 43 . . . Level 5 8 | . . . . . . . . . . . . . . . 32 . 54 . 4 . 33 . . . . High Security . | . . . . . . . . . . . . . . . . . . . . . . . . . . Max Security . | . . . . . . . . . . . . . . . . . . . . . . . . . . Peak Influence 2677 | 10 165 100 224 53 . 30 22 291 141 97 690 367 1583 996 1845 1087 2677 1404 1696 963 1826 1219 635 876 556 Initial 1404 | . . 40 23 53 . . 11 7 141 18 55 361 166 830 693 968 753 1404 711 869 709 958 635 286 525 Average 742 | 1 64 75 127 43 . 11 3 188 91 45 424 298 965 785 1341 1014 1720 923 1306 910 1350 1051 440 579 510 Influence Increases 15152 | 10 334 170 799 . . 50 22 284 . 297 675 67 1567 826 1292 229 2164 1032 1465 363 1347 1077 57 750 275 Destroy 0b10 Robot/C 6835 | . 220 140 520 . . 20 . 120 . 160 380 20 620 420 500 80 900 380 620 220 585 375 30 390 135 Destroy 0b10 Robot/NC 228 | 10 25 . 60 . . . 5 . . 5 . . . 45 15 20 . 10 . 5 4 4 4 8 8 Destroy Leader 984 | . 48 30 166 . . . 2 10 . 62 10 10 50 130 40 8 40 70 60 42 48 90 10 32 26 Allied During Kill 3149 | . . . . . . . . . . 9 12 13 283 194 323 75 746 460 442 50 80 303 4 98 57 Successful Hack 295 | . 11 . 5 . . . . . . 58 18 24 12 6 . . 8 29 16 . 28 40 . 12 28 Disable Machine 366 | . . . . . . . . 30 . . . . 30 15 30 . 30 75 15 15 30 72 . 24 . Anti-Garrison Action 1852 | . . . . . . . . 100 . . 150 . 400 . 250 . 300 . 250 . 288 . . 114 . Destroy Structure 672 | . . . 3 . . . . 24 . 3 105 . 142 16 104 46 80 8 32 16 17 58 9 . 9 Partial Spotted 105 | . . . 15 . . . . . . . . . . . 15 . . . . 15 12 24 . 24 . Lose Combat Pursuer 591 | . 30 . 30 . . 30 15 . . . . . 30 . 15 . 60 . 30 . 255 36 . 48 12 Miscellaneous 75 | . . . . . . . . . . . . . . . . . . . . . . 75 . . . Influence Decreases 14652 | 10 230 214 722 104 33 20 40 5 250 259 64 519 222 1419 437 997 564 2693 935 963 467 1692 886 256 651 Entered New Map 7474 | . . 64 37 84 33 . 19 5 150 23 24 329 72 753 297 877 324 1273 305 677 237 868 576 96 351 Time Decay 3066 | 10 230 150 543 20 . 20 21 . 100 196 . 190 . 416 . 80 . 270 . 246 . 294 150 . 130 Lost Part 80 | . . . . . . . . . . . 10 . . . . . 20 . . . 10 . 10 . 30 Lost Ally 2240 | . . . . . . . . . . 40 30 . 150 100 140 40 70 250 480 40 220 380 . 160 140 Purge Threat 1792 | . . . 142 . . . . . . . . . . 150 . . 150 900 150 . . 150 150 . . Squads Dispatched 34 | . 2 . 3 . . . . . 1 5 . 2 . 6 . . . 4 . 4 . 7 . . . Investigation 8 | . . . 1 . . . . . . . . 1 . 2 . . . . . 1 . 3 . . . Extermination 8 | . . . . . . . . . . 1 . 1 . 1 . . . 1 . 2 . 2 . . . Reinforcement 7 | . 2 . 2 . . . . . 1 1 . . . . . . . . . . . 1 . . . Assault 5 | . . . . . . . . . . 2 . . . . . . . 1 . 1 . 1 . . . Garrison 6 | . . . . . . . . . . 1 . . . 3 . . . 2 . . . . . . . Intercept . | . . . . . . . . . . . . . . . . . . . . . . . . . . Searches Triggered . | . . . . . . . . . . . . . . . . . . . . . . . . . . Construction Impeded . | . . . . . . . . . . . . . . . . . . . . . . . . . . Haulers Reinforced . | . . . . . . . . . . . . . . . . . . . . . . . . . . Active Scanning Responses . | . . . . . . . . . . . . . . . . . . . . . . . . . . Cargo Convoy Interrupts . | . . . . . . . . . . . . . . . . . . . . . . . . . . Stealth | -11 -10 -10 -9 -9 -9 -8 -8 -8 -8 -7 -7 -6 -6 -6 -6 -5 -5 -4 -4 -3 -3 -3 -2 -2 -1 --------- Run | Yrd Mat Min Mat Min Exi Min Mat Gar Mat Fac Gar Fac Gar Fac Gar Fac Gar Fac Gar Res Gar Arm Res Gar Acc Distress Signals 14 | . 2 . 2 . . . 2 . 1 . . . . . . 1 . 2 . 1 . 3 . . . Communications Jammed 346 | . . . . . . . . . . . . . . 6 . 48 . 228 . 53 . 2 9 . . Distress Signals 345 | . . . . . . . . . . . . . . 5 . 48 . 228 . 53 . 2 9 . . Times Spotted 504 | . 21 7 37 . . 3 4 6 3 14 26 4 23 31 31 8 58 27 35 16 54 24 8 43 21 Peak Tracking Total 12 | . 4 2 5 . . 3 5 3 5 5 12 3 4 4 6 6 11 7 11 4 10 9 2 12 6 Tactical Retreats 27 | . 2 . 2 . . 1 1 . . . . . 2 . 1 . 4 . 2 . 7 2 . 2 1 Traps | -11 -10 -10 -9 -9 -9 -8 -8 -8 -8 -7 -7 -6 -6 -6 -6 -5 -5 -4 -4 -3 -3 -3 -2 -2 -1 ------- Run | Yrd Mat Min Mat Min Exi Min Mat Gar Mat Fac Gar Fac Gar Fac Gar Fac Gar Fac Gar Res Gar Arm Res Gar Acc Traps Triggered 21 | . . . 1 . . . . 1 . . 2 . 1 . . . 1 . 4 1 3 4 . 2 1 Indirectly . | . . . . . . . . . . . . . . . . . . . . . . . . . . Trap Hack Attempts . | . . . . . . . . . . . . . . . . . . . . . . . . . . Triggered . | . . . . . . . . . . . . . . . . . . . . . . . . . . Disarmed 3 | . . . 3 . . . . . . . . . . . . . . . . . . . . . . Reprogrammed . | . . . . . . . . . . . . . . . . . . . . . . . . . . Reused . | . . . . . . . . . . . . . . . . . . . . . . . . . . Traps Extracted . | . . . . . . . . . . . . . . . . . . . . . . . . . . Installed . | . . . . . . . . . . . . . . . . . . . . . . . . . . Triggered . | . . . . . . . . . . . . . . . . . . . . . . . . . . Machines | -11 -10 -10 -9 -9 -9 -8 -8 -8 -8 -7 -7 -6 -6 -6 -6 -5 -5 -4 -4 -3 -3 -3 -2 -2 -1 ---------- Run | Yrd Mat Min Mat Min Exi Min Mat Gar Mat Fac Gar Fac Gar Fac Gar Fac Gar Fac Gar Res Gar Arm Res Gar Acc Machines Disabled 67 | . . . . . . . . 4 . . 4 . 12 1 8 . 6 5 6 1 9 6 . 5 . Max in Single Turn 2 | . . . . . . . . 1 . . 2 . 2 1 1 . 1 . 1 1 1 1 . 1 . Garrison Access 2 | . . . . . . . . . . 1 . . . . . . . . . . . . . . 1 Garrison Relay 35 | . . . . . . . . 2 . . 2 . 7 . 5 . 5 . 5 . 6 . . 3 . Phase Generator 2 | . . . . . . . . . . . 1 . 1 . . . . . . . . . . . . Machines Repaired . | . . . . . . . . . . . . . . . . . . . . . . . . . . Machines Dismantled . | . . . . . . . . . . . . . . . . . . . . . . . . . . Machines Sabotaged . | . . . . . . . . . . . . . . . . . . . . . . . . . . Overloaded Fab Kills . | . . . . . . . . . . . . . . . . . . . . . . . . . . Hacking | -11 -10 -10 -9 -9 -9 -8 -8 -8 -8 -7 -7 -6 -6 -6 -6 -5 -5 -4 -4 -3 -3 -3 -2 -2 -1 --------- Run | Yrd Mat Min Mat Min Exi Min Mat Gar Mat Fac Gar Fac Gar Fac Gar Fac Gar Fac Gar Res Gar Arm Res Gar Acc Machines Accessed 105 | . 3 . 11 . 2 . 4 2 1 13 2 6 1 11 1 2 2 11 4 4 3 10 5 3 4 Terminals 71 | . 3 . 7 . . . 2 2 . 8 2 4 1 6 1 . 2 7 4 2 3 8 3 3 3 Fabricators 8 | . . . . . . . . . . 1 . . . 2 . . . 2 . 1 . 2 . . . Repair Stations 6 | . . . . . . . 1 . 1 1 . 1 . 1 . . . 1 . . . . . . . Recycling Units 4 | . . . 2 . . . . . . 2 . . . . . . . . . . . . . . . Scanalyzers 5 | . . . 2 . . . . . . . . . . 1 . 1 . . . . . . 1 . . Garrison Access 9 | . . . . . . . 1 . . 1 . 1 . 1 . 1 . 1 . 1 . . 1 . 1 Total Hacks 350 | . 9 . 39 . 2 . 18 3 6 41 6 25 3 35 1 5 7 52 13 13 9 29 18 3 13 Successful 220 | . 4 . 26 . 2 . 8 . 6 24 3 17 2 27 1 5 4 38 5 10 3 14 10 3 8 Failed 128 | . 5 . 12 . . . 9 3 . 17 3 8 1 8 . . 3 14 8 3 6 15 8 . 5 Catastrophic 13 | . 1 . 1 . . . 1 2 . 1 . . . 1 . . 1 1 3 . 1 . . . . Database Lockouts 2 | . . . 1 . . . 1 . . . . . . . . . . . . . . . . . . Manual 150 | . 7 . 21 . 1 . 12 3 . 9 4 5 2 15 1 . 6 23 8 4 9 8 7 1 4 Terminals 240 | . 9 . 28 . . . 12 3 . 27 6 13 3 17 1 . 7 37 13 5 9 25 10 3 12 Fabricators 32 | . . . . . . . . . . 4 . . . 7 . . . 10 . 7 . 4 . . . Repair Stations 40 | . . . . . . . 5 . 6 5 . 11 . 9 . . . 4 . . . . . . . Recycling Units 11 | . . . 7 . . . . . . 4 . . . . . . . . . . . . . . . Scanalyzers 16 | . . . 4 . . . . . . . . . . 1 . 4 . . . . . . 7 . . Garrison Access 9 | . . . . . . . 1 . . 1 . 1 . 1 . 1 . 1 . 1 . . 1 . 1 Terminal Hacks 96 | . 2 . 7 . 2 . 1 . . 12 3 5 2 7 1 . 4 19 5 2 3 9 4 3 5 Record 1 | . . . . . 1 . . . . . . . . . . . . . . . . . . . . Part Schematic 2 | . . . . . . . . . . . . . . . . . . 2 . . . . . . . Robot Schematic 3 | . . . . . . . . . . 1 . . . 1 . . . 1 . . . . . . . Robot Analysis 9 | . 1 . . . . . 1 . . 2 . 1 . . . . . . . . . 2 . . 2 Prototype ID Bank 6 | . 1 . 2 . . . . . . 2 . . . . . . . 1 . . . . . . . Open Door 4 | . . . . . . . . . . . 1 . . . . . . . 1 . . 1 . . 1 Level Access Points 6 | . . . . . . . . . . 1 . . . . . . 1 . 1 . 1 . . 1 1 Branch Access Points 5 | . . . . . . . . . . 1 . . . . . . . 1 . . 1 1 . . 1 Emergency Access Points 3 | . . . . . . . . . . . 1 . 1 . . . . . . . . . . 1 . Machine Index 2 | . . . . . . . . . . . . 1 . . . . . . . . . 1 . . . Terminal Index 5 | . . . . . . . . . . 1 . 1 . 1 . . . 1 . . . . 1 . . Fabricator Index 5 | . . . . . . . . . . 1 . 1 . 1 . . . 1 . . . . 1 . . Repair Station Index 1 | . . . . . . . . . . . . . . . . . . 1 . . . . . . . Garrison Index 3 | . . . . . . . . . . 1 . . . 1 . . . 1 . . . . . . . Unreport Threat 13 | . . . 1 . . . . . . . . . . 1 . . 1 6 1 . . 2 1 . . Disarm Traps 1 | . . . 1 . . . . . . . . . . . . . . . . . . . . . . Surveillance Status 1 | . . . 1 . . . . . . . . . . . . . . . . . . . . . . Recall Extermination 1 | . . . . . . . . . . 1 . . . . . . . . . . . . . . . Recall Reinforcements 2 | . . . . . . . . . . 1 . . . . . . . . . . . 1 . . . Hauler Manifests 4 | . . . 1 . . . . . . . . . . . . . . 1 . 1 . . 1 . . Registered Components 2 | . . . . . . . . . . . . . . 1 . . . 1 . . . . . . . Registered Prototypes 4 | . . . . . . . . . . . . 1 . 1 . . . 1 . 1 . . . . . Zone Layout 3 | . . . 1 . . . . . . . . . . . . . . 1 . . . 1 . . . Garrison Registry 9 | . . . . . . . . . . . 1 . 1 . 1 . 2 . 2 . 1 . . 1 . Proto ID Catalog 1 | . . . . . 1 . . . . . . . . . . . . . . . . . . . . Fabricator Hacks 24 | . . . . . . . . . . 1 . . . 6 . . . 7 . 6 . 4 . . . Network Status 2 | . . . . . . . . . . 1 . . . . . . . 1 . . . . . . . Load Schematic 11 | . . . . . . . . . . . . . . 3 . . . 3 . 3 . 2 . . . Build 11 | . . . . . . . . . . . . . . 3 . . . 3 . 3 . 2 . . . Repair Station Hacks 36 | . . . . . . . 5 . 6 4 . 9 . 8 . . . 4 . . . . . . . Scan Component 19 | . . . . . . . 3 . 3 2 . 5 . 4 . . . 2 . . . . . . . Repair 17 | . . . . . . . 2 . 3 2 . 4 . 4 . . . 2 . . . . . . . Recycling Unit Hacks 3 | . . . 1 . . . . . . 2 . . . . . . . . . . . . . . . Report Inventory 2 | . . . . . . . . . . 2 . . . . . . . . . . . . . . . Retrieve Components 1 | . . . 1 . . . . . . . . . . . . . . . . . . . . . . Scanalyzer 10 | . . . 2 . . . . . . . . . . 1 . 4 . . . . . . 3 . . Insert Component 2 | . . . . . . . . . . . . . . 1 . 1 . . . . . . . . . Analyze 2 | . . . . . . . . . . . . . . . . 2 . . . . . . . . . Retrieve Study 6 | . . . 2 . . . . . . . . . . . . 1 . . . . . . 3 . . Garrison Access Hacks 9 | . . . . . . . 1 . . 1 . 1 . 1 . 1 . 1 . 1 . . 1 . 1 Unlock Access 8 | . . . . . . . 1 . . 1 . 1 . 1 . 1 . 1 . 1 . . 1 . . Seal Access 1 | . . . . . . . . . . . . . . . . . . . . . . . . . 1 Unauthorized Hacks 42 | . 2 . 16 . . . 1 . . 4 . 2 . 4 . . . 7 . 1 . 1 2 . 2 Terminals 33 | . 2 . 12 . . . 1 . . 2 . 2 . 2 . . . 6 . 1 . 1 2 . 2 Assimilate 1 | . . . . . . . . . . . . . . . . . . 1 . . . . . . . Botnet 25 | . 1 . 6 . . . 1 . . 2 . 2 . 2 . . . 5 . 1 . 1 2 . 2 Skim 7 | . 1 . 6 . . . . . . . . . . . . . . . . . . . . . . Fabricators 4 | . . . . . . . . . . 2 . . . 1 . . . 1 . . . . . . . Prioritize 2 | . . . . . . . . . . . . . . 1 . . . 1 . . . . . . . Liberate 1 | . . . . . . . . . . 1 . . . . . . . . . . . . . . . Haulers 1 | . . . . . . . . . . 1 . . . . . . . . . . . . . . . Repair Stations 1 | . . . . . . . . . . . . . . 1 . . . . . . . . . . . Mechanics 1 | . . . . . . . . . . . . . . 1 . . . . . . . . . . . Recycling Units 4 | . . . 4 . . . . . . . . . . . . . . . . . . . . . . Monitor 1 | . . . 1 . . . . . . . . . . . . . . . . . . . . . . Reject 1 | . . . 1 . . . . . . . . . . . . . . . . . . . . . . Recyclers 1 | . . . 1 . . . . . . . . . . . . . . . . . . . . . . Mask 1 | . . . 1 . . . . . . . . . . . . . . . . . . . . . . Scanalyzers . | . . . . . . . . . . . . . . . . . . . . . . . . . . Garrison Access . | . . . . . . . . . . . . . . . . . . . . . . . . . . Data Cores Recovered . | . . . . . . . . . . . . . . . . . . . . . . . . . . Used . | . . . . . . . . . . . . . . . . . . . . . . . . . . Hacking Detections 73 | . 3 . 6 . . . 2 2 . 11 1 6 1 10 . 1 2 9 2 2 1 7 3 1 3 Full Trace Events 5 | . . . 1 . . . . . . . . 1 . 2 . . . . . . . 1 . . . Feedback Events . | . . . . . . . . . . . . . . . . . . . . . . . . . . Feedback Blocked . | . . . . . . . . . . . . . . . . . . . . . . . . . . Robot Schematics Acquired 3 | . . . . . . . . . . 1 . . . 1 . . . 1 . . . . . . . Robots Built 18 | . . . . . . . . . . . . . . 6 . . . 6 . 4 . 2 . . . Authchips 7 | . . . . . . . . . . . . . . 1 . . . 3 . 3 . . . . . Time 898 | . . . . . . . . . . . . . . 309 . . . 337 . 168 . 84 . . . Total Robot Build Rating 108 | . . . . . . . . . . . . . . 36 . . . 36 . 24 . 12 . . . Part Schematics Acquired 3 | . . . . . . . . . . . . . . . . 1 . 2 . . . . . . . Parts Built 2 | . . . . . . . . . . . . . . . . . . . . . . 2 . . . Authchips . | . . . . . . . . . . . . . . . . . . . . . . . . . . Time 139 | . . . . . . . . . . . . . . . . . . . . . . 139 . . . Total Part Build Rating 18 | . . . . . . . . . . . . . . . . . . . . . . 18 . . . Part Studies Acquired 6 | . . . 2 . . . . . . . . . . . . 1 . . . . . . 3 . . Parts Repaired 17 | . . . . . . . 2 . 3 2 . 4 . 4 . . . 2 . . . . . . . Time 468 | . . . . . . . 58 . 84 29 . 80 . 177 . . . 40 . . . . . . . Parts Recycled . | . . . . . . . . . . . . . . . . . . . . . . . . . . Recycled Matter . | . . . . . . . . . . . . . . . . . . . . . . . . . . Retrieved Matter . | . . . . . . . . . . . . . . . . . . . . . . . . . . Retrieved Components 9 | . . . 9 . . . . . . . . . . . . . . . . . . . . . . Parts Scanalyzed 1 | . . . . . . . . . . . . . . . . 1 . . . . . . . . . Part Schematics Acquired 1 | . . . . . . . . . . . . . . . . 1 . . . . . . . . . Parts Damaged . | . . . . . . . . . . . . . . . . . . . . . . . . . . Bothacking | -11 -10 -10 -9 -9 -9 -8 -8 -8 -8 -7 -7 -6 -6 -6 -6 -5 -5 -4 -4 -3 -3 -3 -2 -2 -1 ------------ Run | Yrd Mat Min Mat Min Exi Min Mat Gar Mat Fac Gar Fac Gar Fac Gar Fac Gar Fac Gar Res Gar Arm Res Gar Acc Used RIF Installer 10 | . . . . . . . . 1 . . 1 . 1 . 1 . 1 . 2 . 2 . . 1 . Coupler Efficiency 1 | . . . . . . . . . . . . . . . . . 1 . . . . . . . . Hotswap 1 | . . . . . . . . . . . . . . . . . . . 1 . . . . . . Code Merge 1 | . . . . . . . . . . . . . . . . . . . 1 . . . . . . Command Fork 1 | . . . . . . . . . . . 1 . . . . . . . . . . . . . . Threat Obfuscator 1 | . . . . . . . . . . . . . . . . . . . . . 1 . . . . Signal Jammer 1 | . . . . . . . . . . . . . 1 . . . . . . . . . . . . Robot Detection 1 | . . . . . . . . . . . . . . . . . . . . . 1 . . . . Alert ID Control 1 | . . . . . . . . . . . . . . . . . . . . . . . . 1 . Structural Interface 1 | . . . . . . . . . . . . . . . 1 . . . . . . . . . . Robots Hacked 106 | . . . . 1 4 . . . 1 6 6 6 . 11 2 4 8 2 11 4 8 9 3 9 11 Non-combat 26 | . . . . . 3 . . . 1 4 . 3 . 7 1 1 . 1 . . . 2 1 . 2 Combat 80 | . . . . 1 1 . . . . 2 6 3 . 4 1 3 8 1 11 4 8 7 2 9 9 Robot Hacks Applied 109 | . . . . 1 4 . . . 1 6 7 6 . 11 2 4 9 2 11 4 8 9 3 9 12 parse_system 10 | . . . . 1 4 . . . 1 1 . . . . . . 1 . . . 1 . . 1 . no_distress 2 | . . . . . . . . . . . . 1 . 1 . . . . . . . . . . . find_chute 2 | . . . . . . . . . . 1 . 1 . . . . . . . . . . . . . map_route 3 | . . . . . . . . . . 1 . . . 1 . . . . . . . . . . 1 disrupt_area 2 | . . . . . . . . . . . . . . 1 . . . . 1 . . . . . . spike_heat 1 | . . . . . . . . . . . 1 . . . . . . . . . . . . . . overload_power 4 | . . . . . . . . . . 1 1 . . 1 . . . . . . . . . . 1 amplify_resonance 15 | . . . . . . . . . . 1 2 . . . . . 1 . 1 1 . 1 1 2 5 wipe_record 2 | . . . . . . . . . . . 1 . . . . . . . . . . . 1 . . reboot_system 1 | . . . . . . . . . . . . . . . . . . . 1 . . . . . . formatsys_low 4 | . . . . . . . . . . 1 . . . 1 1 1 . . . . . . . . . formatsys_high 63 | . . . . . . . . . . . 2 4 . 6 1 3 7 2 8 3 7 8 1 6 5 Relay Couplers Released 58 | . . . . . . . . 4 . . 3 . 10 . 10 . 8 . 10 . 8 . . 5 . Machine Destruction 57 | . . . . . . . . 4 . . 3 . 10 . 10 . 8 . 9 . 8 . . 5 . Programmers 1 | . . . . . . . . . . . . . . . . . . . 1 . . . . . . Attached 30 | . . . . . . . . 1 . 1 2 . 4 1 4 . 8 . 1 . 5 . . 2 1 Merged Code Value 201 | . . . . . . . . . . . . . . . . . . . 117 . 37 . . 47 . Fabnet Peak Effective % . | . . . . . . . . . . . . . . . . . . . . . . . . . . Robots Rewired 31 | . . . . . . . . . . 2 3 . . . 1 . 8 1 2 . 5 4 . 5 . Allies Hacked 16 | . . . . . . . . . . . . . . 2 4 . . 1 3 1 . 5 . . . Hacks Repelled 1 | . . . . . . . . . . . . . . 1 . . . . . . . . . . . Allies | -11 -10 -10 -9 -9 -9 -8 -8 -8 -8 -7 -7 -6 -6 -6 -6 -5 -5 -4 -4 -3 -3 -3 -2 -2 -1 -------- Run | Yrd Mat Min Mat Min Exi Min Mat Gar Mat Fac Gar Fac Gar Fac Gar Fac Gar Fac Gar Res Gar Arm Res Gar Acc Total Allies 142 | . . . . . . . . . . 3 5 4 2 15 8 4 19 10 12 7 12 23 1 12 5 Largest Group 27 | . . . . . . . . . . 3 4 8 8 11 12 13 24 27 18 6 8 15 2 4 7 Highest-Rated Group 1152 | . . . . . . . . . . 54 111 221 281 431 443 479 997 1152 647 303 359 829 99 366 519 Highest-Rated Ally 119 | . . . . . . . . . . 26 39 39 95 54 85 85 99 116 54 64 116 116 89 119 119 Total Orders 13 | . . . . . . . . . . . . . . 4 2 2 3 1 . . . 1 . . . GUARD 1 | . . . . . . . . . . . . . . . 1 . . . . . . . . . . AID 12 | . . . . . . . . . . . . . . 4 1 2 3 1 . . . 1 . . . Ally Attacks 1071 | . . . . . . . . . . 10 7 . 93 42 60 24 275 128 133 26 47 124 7 53 42 Total Damage 29501 | . . . . . . . . . . 136 101 . 1937 972 1418 800 6475 3332 2924 766 1816 4686 253 2046 1839 Kills 226 | . . . . . . . . . . 2 1 . 20 11 17 6 83 22 16 2 10 23 2 7 4 Allies Corrupted 8 | . . . . . . . . . . . . . . 1 . . . 1 3 2 . 1 . . . Allies Melted 3 | . . . . . . . . . . . . . . . . 1 . . . . 1 1 . . . Intel | -11 -10 -10 -9 -9 -9 -8 -8 -8 -8 -7 -7 -6 -6 -6 -6 -5 -5 -4 -4 -3 -3 -3 -2 -2 -1 ------- Run | Yrd Mat Min Mat Min Exi Min Mat Gar Mat Fac Gar Fac Gar Fac Gar Fac Gar Fac Gar Res Gar Arm Res Gar Acc Active Infowar (turns) 12509 | . 588 318 1601 55 80 48 123 201 216 418 520 398 591 1006 671 166 911 472 692 527 1105 651 312 568 271 Structural 8676 | . 588 318 1601 55 80 48 123 201 190 418 520 398 591 914 671 166 548 . 114 409 127 . 279 105 212 T.N.C. 9905 | . . . . . 38 48 123 201 216 418 520 398 591 1006 671 166 911 472 692 527 1105 651 312 568 271 Robot Analysis Total 8 | . 1 . . . . . 1 . . 2 . 1 . . . . . . . . . 2 . . 1 Derelict Logs Recovered 1 | . . . . 1 . . . . . . . . . . . . . . . . . . . . . Drone Launches . | . . . . . . . . . . . . . . . . . . . . . . . . . . Drone Recoveries . | . . . . . . . . . . . . . . . . . . . . . . . . . . Exploration | -11 -10 -10 -9 -9 -9 -8 -8 -8 -8 -7 -7 -6 -6 -6 -6 -5 -5 -4 -4 -3 -3 -3 -2 -2 -1 ------------- Run | Yrd Mat Min Mat Min Exi Min Mat Gar Mat Fac Gar Fac Gar Fac Gar Fac Gar Fac Gar Res Gar Arm Res Gar Acc Turns Passed 12737 | 42 653 318 1601 55 80 48 123 201 216 418 520 398 591 1006 682 166 911 582 692 527 1105 651 312 568 271 Spaces Moved 17118 | 17 444 239 1469 173 239 103 110 424 380 772 759 572 1042 1205 860 256 1521 772 995 625 1391 1087 423 727 513 Core 1 | 1 . . . . . . . . . . . . . . . . . . . . . . . . . Treads . | . . . . . . . . . . . . . . . . . . . . . . . . . . Legs . | . . . . . . . . . . . . . . . . . . . . . . . . . . Wheels 1857 | 16 444 239 1158 . . . . . . . . . . . . . . . . . . . . . . Hover . | . . . . . . . . . . . . . . . . . . . . . . . . . . Flight 15260 | . . . 311 173 239 103 110 424 380 772 759 572 1042 1205 860 256 1521 772 995 625 1391 1087 423 727 513 Fastest Speed 25 | 100 100 100 29 29 29 29 29 29 29 29 28 27 25 26 26 26 25 31 31 31 28 28 28 25 25 Average Speed 35 | 100 100 100 84 29 29 29 29 29 29 29 28 27 25 26 26 26 26 31 31 31 29 28 28 26 28 Slowest Speed 100 | 100 100 100 100 29 29 29 29 29 29 29 32 28 28 29 26 26 31 31 31 31 31 32 28 28 92 Overloaded Moves 10 | . . . . . . . . . . . . . . . . . . . . . . . . . 10 Propulsion Burnouts . | . . . . . . . . . . . . . . . . . . . . . . . . . . Robots Hopped 45 | . . . . . . . . . . 6 . 2 . 3 7 7 4 2 . . . 7 3 1 3 Potential Cave-ins . | . . . . . . . . . . . . . . . . . . . . . . . . . . Cave-ins Triggered . | . . . . . . . . . . . . . . . . . . . . . . . . . . Exploration Rate (%) 47 | 2 79 40 83 46 66 40 19 41 36 27 60 12 80 27 95 9 83 17 94 15 96 49 11 85 14 Regions Visited 25 Branch Regions 5 Pre-discovered Areas 5 | . . 1 3 . 1 . . . . . . . . . . . . . . . . . . . . Known Exits Taken 11 | . . . 1 . . 1 1 . 1 1 . 1 . 1 . 1 . 1 . 1 . . 1 . . Unknown Exits Taken 6 | 1 1 1 . 1 1 . . . . . . . . . . . . . . . . 1 . . . Scrap Searched 1 | . . . . 1 . . . . . . . . . . . . . . . . . . . . . Spaces Dug 20 | . . . 2 . . . . 5 . . . . . 3 . 1 . . . . 2 1 3 . 3 Terrain Destroyed 314 | . . . 2 . . . . 32 . . 121 . 111 10 20 1 7 . 1 . 2 1 3 . 3 Melee 15 | . . . 2 . . . . . . . . . . 3 . 1 . . . . 2 1 3 . 3 Projectile 3 | . . . . . . . . . . . 2 . . . . . 1 . . . . . . . . AOE 296 | . . . . . . . . 32 . . 119 . 111 7 20 . 6 . 1 . . . . . . Terrain Rammed 2 | . . . . . . . . . . . . . . . 1 . 1 . . . . . . . . Walls Destroyed 2 | . . . . . . . . . . . . . . . 1 . 1 . . . . . . . . Machines Disabled . | . . . . . . . . . . . . . . . . . . . . . . . . . . Actions | -11 -10 -10 -9 -9 -9 -8 -8 -8 -8 -7 -7 -6 -6 -6 -6 -5 -5 -4 -4 -3 -3 -3 -2 -2 -1 --------- Run | Yrd Mat Min Mat Min Exi Min Mat Gar Mat Fac Gar Fac Gar Fac Gar Fac Gar Fac Gar Res Gar Arm Res Gar Acc Total 22201 | 29 541 281 1658 175 245 108 197 470 482 900 987 784 1314 1800 1198 329 1965 1096 1278 894 1919 1378 596 977 600 Wait 3120 | . 20 11 45 . . . 74 12 93 62 92 178 147 464 187 56 321 292 130 175 314 189 157 76 25 Move 17006 | 16 443 238 1468 172 238 102 109 422 379 760 757 567 1040 1198 848 244 1513 767 993 624 1389 1075 417 721 506 Hop 31 | . . . . . . . . . . 5 . 2 . 3 3 4 2 2 . . . 4 2 1 3 Pick Up 57 | . 3 . 6 . . . 1 3 . 1 1 . 4 2 7 2 2 4 9 . 5 3 1 2 1 Fast Attach 86 | 4 2 . 5 . 1 . 6 1 4 3 5 3 2 5 1 . 7 1 4 5 6 11 3 3 4 Attach 26 | . . . 2 . . . . 1 . . . . . 2 1 . 5 3 1 3 5 1 . 1 1 Detach 25 | 2 . . 1 . . . 1 . . 1 . . . 1 1 . 7 1 2 1 5 2 . . . Swap 125 | . . 1 8 2 2 . 1 3 3 7 31 7 14 11 7 1 8 . 2 2 4 1 2 6 2 Drop 80 | 1 2 1 10 . . . 4 2 2 1 5 1 7 . 5 2 6 1 10 5 3 3 2 4 3 Fire 549 | 6 58 19 81 . . 6 1 17 . 40 51 9 14 55 17 8 26 5 34 4 37 17 4 20 20 Melee 421 | . . . 3 1 4 . . . 1 . 7 11 23 28 64 10 30 7 38 29 65 21 7 57 15 Ram 2 | . . . . . . . . . . . . . . . 1 . 1 . . . . . . . . Kick . | . . . . . . . . . . . . . . . . . . . . . . . . . . Crush . | . . . . . . . . . . . . . . . . . . . . . . . . . . Escape Stasis 101 | . . . . . . . . . . . 22 . 5 . . . 2 . 20 . 25 . . 19 8 Rewire 6 | . . . . . . . . . . . . 1 . . 1 . 1 1 . . . . 1 . 1 Trap . | . . . . . . . . . . . . . . . . . . . . . . . . . . Miscellaneous 566 | . 13 11 29 . . . . 9 . 20 16 5 58 31 55 2 34 12 35 46 61 51 . 67 11 Route ------- -11/Scrapyard -10/Materials (discovered 3 exits: *Mat x2 / [*Min]) -10/Mines -9/Materials (discovered 4 exits: *Mat x3 / *Min) -9/Mines -9/Exiles -8/Mines -8/Materials (discovered 6 exits: Fac x3 / Sto x2 / Gar) -8/Garrison -8/Materials (discovered 3 exits: *Fac x2 / *Sto) -7/Factory (discovered 7 exits: Fac x4 / Low x2 / Gar) -7/Garrison (discovered 3 exits: *Fac x3) -6/Factory (discovered 2 exits: *Fac / Gar) -6/Garrison (discovered 3 exits: *Fac x3) -6/Factory (discovered 2 exits: [Low] / Gar) -6/Garrison (discovered 3 exits: *Fac x3) -5/Factory (discovered 2 exits: *Fac / Gar) -5/Garrison (discovered 3 exits: *Fac x3) -4/Factory (discovered 3 exits: Upp x2 / Gar) -4/Garrison (discovered 3 exits: *Res x3) -3/Research (discovered 2 exits: [*Tes] / Gar) -3/Garrison (discovered 3 exits: *Arm x3) -3/Armory -2/Research -2/Garrison (discovered 4 exits: *Acc x3 / *Res) -1/Access (discovered 2 exits: *Sur / Com) To Epsilon Eridani History --------- Turn | Location | Event 1 | -11/Scrapyard | Upgraded with Propulsion slot (x1) 1 | -11/Scrapyard | Upgraded with Utility slot (x1) 1 | -11/Scrapyard | Upgraded with Weapon slot (x1) 3 | -11/Scrapyard | Discovered new exit (range 1) 43 | -11/Scrapyard | Entered Materials 241 | -10/Materials | Discovered new exit (range 14) 309 | -10/Materials | Build established: Mutant 585 | -10/Materials | Discovered new exit (range 10) 690 | -10/Materials | Discovered new exit (range 7) 696 | -10/Materials | Entered Mines 698 | -10/Mines | Reached level 2 711 | -10/Mines | Upgraded with Utility slot (x1) 931 | -10/Mines | Learned location of Storage (-8) 1006 | -10/Mines | Discovered new exit (range 9) 1014 | -10/Mines | Entered Materials 1016 | -9/Materials | Reached level 3 1017 | -9/Materials | Upgraded with Propulsion slot (x1) 1103 | -9/Materials | Reached level 4 1383 | -9/Materials | Discovered new exit (range 8) 1451 | -9/Materials | Central database locked down 1487 | -9/Materials | Reached level 5 1506 | -9/Materials | Build established: Hacker-Mutant 1592 | -9/Materials | Discovered new exit (range 12) 1629 | -9/Materials | Discovered new exit (range 12) 1699 | -9/Materials | Learned location of Zion (-7) 1762 | -9/Materials | Identified exit to Materials 1815 | -9/Materials | Learned location of 2 exits from Materials 1859 | -9/Materials | Learned 2 Storage zone layouts 1979 | -9/Materials | Learned location of 2 exits from Materials 2020 | -9/Materials | Identified exit to Mines 2073 | -9/Materials | Learned Storage security intel 2367 | -9/Materials | Reached level 6 2370 | -9/Materials | Upgraded with Propulsion slot (x1) 2370 | -9/Materials | Upgraded with Utility slot (x1) 2615 | -9/Materials | Entered Mines 2653 | -9/Mines | YI-UF0 nonchalantly dropped a Grenade Launcher on the ground 2667 | -9/Mines | Learned location of 1 exit from Materials 2669 | -9/Mines | Deemed a non-threat by the Exiles lab entrance 2669 | -9/Mines | Discovered new exit (range 5) 2670 | -9/Mines | Entered Exiles 2678 | -9/Exiles | Met 8R-AWN 2686 | -9/Exiles | Met EX-HEX 2696 | -9/Exiles | Met EX-BIN 2702 | -9/Exiles | Aligned with FarCom system 2702 | -9/Exiles | Given EX-Vault access code 2709 | -9/Exiles | Opened EX-Vault 2712 | -9/Exiles | Found Modified TNC 2720 | -9/Exiles | Warned to stay clear of 0b10 Research branches 2728 | -9/Exiles | Met EX-DEC 2747 | -9/Exiles | Discovered new exit (range 14) 2750 | -9/Exiles | Left Exiles lab with Modified TNC 2750 | -9/Exiles | Entered Mines 2771 | -8/Mines | Core integrity fell below 50% 2795 | -8/Mines | Discovered exit to Materials (range 10) 2798 | -8/Mines | Entered Materials 2799 | -8/Materials | Identified exit to Storage 2799 | -8/Materials | Core integrity fell below 50% 2800 | -8/Materials | Identified exit to Factory 2800 | -8/Materials | Reached level 7 2829 | -8/Materials | Repaired Flight Unit 2878 | -8/Materials | Repaired Particle Gun+ 2914 | -8/Materials | Central database locked down 2921 | -8/Materials | Identified exit to Garrison 2921 | -8/Materials | Entered Garrison 2921 | -8/Garrison | Reached level 8 2939 | -8/Garrison | Core integrity fell below 20% 2940 | -8/Garrison | Triggered checkpoint 2962 | -8/Garrison | Garrison Relay disabled 2994 | -8/Garrison | Discovered new exit (range 15) 3036 | -8/Garrison | Reached level 9 3045 | -8/Garrison | Build established: Hacker-Scout 3056 | -8/Garrison | Installed Relay Interface Framework 3108 | -8/Garrison | Garrison Relay disabled 3111 | -8/Garrison | Upgraded with Utility slot (x1) 3121 | -8/Garrison | Identified exit to Materials 3122 | -8/Garrison | Entered Materials 3187 | -8/Materials | Repaired Structural Scanner 3221 | -8/Materials | Repaired VTOL Module 3248 | -8/Materials | Repaired Flight Unit 3289 | -8/Materials | Discovered exit to Factory (range 5) 3298 | -8/Materials | Discovered exit to Storage (range 3) 3338 | -8/Materials | Entered Factory 3339 | -7/Factory | Core integrity fell below 50% 3340 | -7/Factory | Reached level 10 3404 | -7/Factory | Garrison activated, responded to threat 3411 | -7/Factory | Noticed a derelict Sapper rigging charges 3497 | -7/Factory | Identified exit to Lower Caves 3497 | -7/Factory | Identified exit to Factory 3586 | -7/Factory | Reached level 11 3731 | -7/Factory | Repaired Flight Unit 3748 | -7/Factory | Repaired VTOL Module 3756 | -7/Factory | Identified exit to Garrison 3756 | -7/Factory | Entered Garrison 3756 | -7/Garrison | Accompanied by 1 ally 3761 | -7/Garrison | Expanded RIF knowledge: Command Fork 3788 | -7/Garrison | Triggered checkpoint 3819 | -7/Garrison | Garrison Relay disabled 3819 | -7/Garrison | Reached level 12 3844 | -7/Garrison | Triggered checkpoint 3846 | -7/Garrison | Triggered checkpoint 3854 | -7/Garrison | Triggered checkpoint 3892 | -7/Garrison | Destroyed 8 combat bots 3903 | -7/Garrison | Core integrity fell below 20% 3980 | -7/Garrison | Triggered checkpoint 4014 | -7/Garrison | Discovered exit to Factory (range 16) 4020 | -7/Garrison | Triggered checkpoint 4037 | -7/Garrison | Garrison Relay disabled 4037 | -7/Garrison | Reached level 13 4041 | -7/Garrison | Upgraded with Utility slot (x1) 4072 | -7/Garrison | Phase Generator disabled 4144 | -7/Garrison | Discovered exit to Factory (range 56) 4144 | -7/Garrison | Discovered exit to Factory (range 12) 4144 | -7/Garrison | Discovered exit to Factory (range 60) 4276 | -7/Garrison | Entered Factory 4276 | -6/Factory | Accompanied by 4 allies 4277 | -6/Factory | Core integrity fell below 50% 4278 | -6/Factory | Reached level 14 4294 | -6/Factory | Repaired VTOL Module 4312 | -6/Factory | Repaired VTOL Module 4329 | -6/Factory | Repaired VTOL Module 4363 | -6/Factory | Repaired Broken Imp. Flight Unit 4464 | -6/Factory | Discovered new exit (range 6) 4465 | -6/Factory | Identified exit to Factory 4531 | -6/Factory | Core integrity fell below 20% 4553 | -6/Factory | Reached level 15 4561 | -6/Factory | Upgraded with Propulsion slot (x1) 4597 | -6/Factory | Identified exit to Garrison 4674 | -6/Factory | Entered Garrison 4674 | -6/Garrison | Accompanied by 8 allies 4677 | -6/Garrison | Expanded RIF knowledge: Signal Jamming 4704 | -6/Garrison | Reached level 16 4722 | -6/Garrison | Triggered checkpoint 4742 | -6/Garrison | Garrison Relay disabled 4765 | -6/Garrison | Reached level 17 4770 | -6/Garrison | Spotted B-75 Beast 4853 | -6/Garrison | Triggered checkpoint 4867 | -6/Garrison | Lost 3 allies 4922 | -6/Garrison | Triggered checkpoint 4966 | -6/Garrison | Discovered new exit (range 43) 4966 | -6/Garrison | Discovered new exit (range 36) 4966 | -6/Garrison | Discovered new exit (range 27) 4966 | -6/Garrison | Watched by a mysterious "MATRIX" hacker. 4982 | -6/Garrison | Triggered checkpoint 4982 | -6/Garrison | Found embedded Infiltrators 4989 | -6/Garrison | Garrison Relay disabled 5011 | -6/Garrison | Identified exit to Factory 5020 | -6/Garrison | Phase Generator disabled 5032 | -6/Garrison | Triggered checkpoint 5042 | -6/Garrison | Reached level 18 5079 | -6/Garrison | Garrison Relay disabled 5094 | -6/Garrison | Garrison Relay disabled 5100 | -6/Garrison | Garrison Relay disabled 5104 | -6/Garrison | Garrison Relay disabled 5147 | -6/Garrison | Garrison Relay disabled 5164 | -6/Garrison | Triggered checkpoint 5231 | -6/Garrison | Lost 3 allies 5265 | -6/Garrison | Entered Factory 5265 | -6/Factory | Accompanied by 2 allies 5293 | -6/Factory | Discovered new exit (range 74) 5344 | -6/Factory | Build established: Wizard-Scout 5387 | -6/Factory | Reached level 19 5390 | -6/Factory | Upgraded with Weapon slot (x1) 5806 | -6/Factory | Fabricated P-70 Sage (x2) 5865 | -6/Factory | Fabricated P-70 Sage (x2) 5890 | -6/Factory | Fabricated P-70 Sage? 5984 | -6/Factory | Garrison activated, responded to threat 6010 | -6/Factory | Repaired VTOL Module 6062 | -6/Factory | Repaired Imp. Flight Unit 6096 | -6/Factory | Repaired VTOL Module 6159 | -6/Factory | Repaired Impulse Thruster 6222 | -6/Factory | Sage 5f assimilated hostile G-50 Soldier 6237 | -6/Factory | Sage 5e assimilated hostile S-27 Virus 6263 | -6/Factory | Identified exit to Garrison 6271 | -6/Factory | Entered Garrison 6271 | -6/Garrison | Accompanied by 10 allies 6276 | -6/Garrison | Rewired B-75 Beast 6381 | -6/Garrison | Garrison Relay disabled 6397 | -6/Garrison | Triggered checkpoint 6409 | -6/Garrison | Reached level 20 6461 | -6/Garrison | Sage 5a assimilated hostile Y-54 Guardian 6475 | -6/Garrison | Triggered checkpoint 6495 | -6/Garrison | Discovered exit to Factory (range 15) 6497 | -6/Garrison | Expanded RIF knowledge: Structural Interface 6502 | -6/Garrison | Lost 4 allies 6513 | -6/Garrison | Garrison Relay disabled 6517 | -6/Garrison | Triggered checkpoint 6520 | -6/Garrison | Sage 5e assimilated hostile G-50 Soldier 6631 | -6/Garrison | Triggered checkpoint 6683 | -6/Garrison | Discovered exit to Factory (range 7) 6693 | -6/Garrison | Triggered checkpoint 6729 | -6/Garrison | Discovered exit to Factory (range 22) 6729 | -6/Garrison | Discovered exit to Factory (range 34) 6729 | -6/Garrison | Discovered exit to Factory (range 63) 6758 | -6/Garrison | Garrison Relay disabled 6770 | -6/Garrison | Garrison Relay disabled 6808 | -6/Garrison | Triggered checkpoint 6835 | -6/Garrison | Triggered checkpoint 6838 | -6/Garrison | Garrison Relay disabled 6953 | -6/Garrison | Entered Factory 6953 | -5/Factory | Accompanied by 10 allies 6955 | -5/Factory | Reached level 21 6955 | -5/Factory | Upgraded with Utility slot (x1) 7048 | -5/Factory | Discovered new exit (range 5) 7067 | -5/Factory | Identified exit to Garrison 7119 | -5/Factory | Entered Garrison 7119 | -5/Garrison | Accompanied by 12 allies 7133 | -5/Garrison | Triggered checkpoint 7134 | -5/Garrison | Reached level 22 7134 | -5/Garrison | Upgraded with Utility slot (x1) 7143 | -5/Garrison | Triggered checkpoint 7151 | -5/Garrison | Garrison Relay disabled 7419 | -5/Garrison | Triggered checkpoint 7423 | -5/Garrison | Triggered checkpoint 7429 | -5/Garrison | Triggered checkpoint 7528 | -5/Garrison | Triggered checkpoint 7546 | -5/Garrison | Reached level 23 7601 | -5/Garrison | Build established: Commander-Scout 7650 | -5/Garrison | Discovered new exit (range 15) 7650 | -5/Garrison | Discovered new exit (range 46) 7650 | -5/Garrison | Discovered new exit (range 63) 7655 | -5/Garrison | Discovered new exit (range 13) 7655 | -5/Garrison | Discovered new exit (range 42) 7655 | -5/Garrison | Discovered new exit (range 76) 7655 | -5/Garrison | Identified exit to Factory 7677 | -5/Garrison | Triggered checkpoint 7689 | -5/Garrison | Assembled breached garrison interior 7702 | -5/Garrison | Expanded RIF knowledge: Coupler Efficiency 7721 | -5/Garrison | Garrison Relay disabled 7750 | -5/Garrison | Spotted Striker 7798 | -5/Garrison | Found Relay Coupler [Proto] 7800 | -5/Garrison | Found Relay Coupler [Proto] 7822 | -5/Garrison | Spotted Striker 7828 | -5/Garrison | Assimilated Striker with formatsys_high 7832 | -5/Garrison | Assimilated Striker with formatsys_high 7941 | -5/Garrison | Garrison Relay disabled 7945 | -5/Garrison | Garrison Relay disabled 8030 | -5/Garrison | Entered Factory 8030 | -4/Factory | Accompanied by 23 allies 8032 | -4/Factory | Reached level 24 8071 | -4/Factory | Identified exit to Upper Caves 8172 | -4/Factory | Spotted B-86 Titan 8174 | -4/Factory | Rewired B-86 Titan 8232 | -4/Factory | Repaired Broken Structural Scanner 8239 | -4/Factory | Reached level 25 8255 | -4/Factory | Repaired Mic. Nuclear Core 8390 | -4/Factory | Fabricated P-70 Sage? 8485 | -4/Factory | Fabricated P-70 Sage (x2) 8496 | -4/Factory | Garrison activated, responded to threat 8508 | -4/Factory | Allies destroyed Striker 8530 | -4/Factory | First assault squad dispatched 8539 | -4/Factory | Lost 3 allies 8570 | -4/Factory | Fabricated P-70 Sage (x2) 8575 | -4/Factory | Allies destroyed Striker 8587 | -4/Factory | Identified exit to Garrison 8612 | -4/Factory | Entered Garrison 8612 | -4/Garrison | Accompanied by 17 allies 8614 | -4/Garrison | Reached level 26 8627 | -4/Garrison | Lost 9 allies 8629 | -4/Garrison | Triggered checkpoint 8649 | -4/Garrison | Sage 7e assimilated hostile S-27 Virus 8655 | -4/Garrison | Garrison Relay disabled 8667 | -4/Garrison | Discovered new exit (range 80) 8667 | -4/Garrison | Discovered new exit (range 75) 8667 | -4/Garrison | Discovered new exit (range 51) 8667 | -4/Garrison | Targeted by mysterious "MATRIX" hacker. 8675 | -4/Garrison | Expanded RIF knowledge: Code Merge 8703 | -4/Garrison | Spotted B-86 Titan 8744 | -4/Garrison | Allies destroyed B-86 Titan 8787 | -4/Garrison | Lost 9 allies 8807 | -4/Garrison | Triggered checkpoint 8814 | -4/Garrison | Triggered checkpoint 8826 | -4/Garrison | Expanded RIF knowledge: Hotswap 8827 | -4/Garrison | Triggered checkpoint 8831 | -4/Garrison | Triggered checkpoint 8846 | -4/Garrison | Garrison Relay disabled 9010 | -4/Garrison | Triggered checkpoint 9015 | -4/Garrison | Lost 3 allies 9050 | -4/Garrison | Reached level 27 9051 | -4/Garrison | Upgraded with Utility slot (x1) 9090 | -4/Garrison | Lost 4 allies 9133 | -4/Garrison | Garrison Relay disabled 9134 | -4/Garrison | Triggered checkpoint 9143 | -4/Garrison | Build established: Botlord-Scout 9154 | -4/Garrison | Discovered new exit (range 24) 9154 | -4/Garrison | Discovered new exit (range 42) 9154 | -4/Garrison | Discovered new exit (range 94) 9154 | -4/Garrison | Identified exit to Research 9204 | -4/Garrison | Garrison Relay disabled 9220 | -4/Garrison | Triggered checkpoint 9226 | -4/Garrison | Garrison Relay disabled 9304 | -4/Garrison | Entered Research 9304 | -3/Research | Accompanied by 3 allies 9454 | -3/Research | Reached level 28 9475 | -3/Research | Upgraded with Weapon slot (x1) 9491 | -3/Research | Discovered new exit (range 10) 9512 | -3/Research | Found Prototype Processor 9512 | -3/Research | Identified Exp. Signal Interpreter 9643 | -3/Research | Fabricated P-70 Sage (x2) 9699 | -3/Research | Fabricated P-70 Sage (x2) 9781 | -3/Research | Lost 3 allies 9804 | -3/Research | First assault squad dispatched 9808 | -3/Research | Identified exit to Garrison 9831 | -3/Research | Entered Garrison 9831 | -3/Garrison | Accompanied by 1 ally 9856 | -3/Garrison | Expanded RIF knowledge: Robot Detection 9862 | -3/Garrison | Spotted Striker 9879 | -3/Garrison | Allies destroyed Striker 9893 | -3/Garrison | Rewired Striker 9895 | -3/Garrison | Rewired Striker 9902 | -3/Garrison | Triggered checkpoint 9939 | -3/Garrison | Triggered checkpoint 9978 | -3/Garrison | Garrison Relay disabled 9995 | -3/Garrison | Garrison Relay disabled 10039 | -3/Garrison | Triggered checkpoint 10046 | -3/Garrison | Triggered checkpoint 10052 | -3/Garrison | Triggered checkpoint 10055 | -3/Garrison | Triggered checkpoint 10096 | -3/Garrison | Lost 5 allies 10176 | -3/Garrison | Lost 3 allies 10245 | -3/Garrison | Reached level 29 10246 | -3/Garrison | Upgraded with Propulsion slot (x1) 10436 | -3/Garrison | Discovered new exit (range 48) 10436 | -3/Garrison | Discovered new exit (range 62) 10436 | -3/Garrison | Discovered new exit (range 44) 10436 | -3/Garrison | Garrison Relay disabled 10446 | -3/Garrison | Triggered checkpoint 10490 | -3/Garrison | Garrison Relay disabled 10602 | -3/Garrison | Core integrity fell below 50% 10643 | -3/Garrison | Garrison Relay disabled 10653 | -3/Garrison | Expanded RIF knowledge: Threat Obfuscation 10721 | -3/Garrison | Triggered checkpoint 10764 | -3/Garrison | Garrison Relay disabled 10774 | -3/Garrison | Spotted B-86 Titan 10775 | -3/Garrison | Assimilated Titan 8a with formatsys_high 10830 | -3/Garrison | Identified exit to Armory 10936 | -3/Garrison | Entered Armory 10936 | -3/Armory | Accompanied by 2 allies 10962 | -3/Armory | Assisted by bots powering up and referring to "LRC-V3" 11025 | -3/Armory | Lost 5 allies 11149 | -3/Armory | Fabricated Adv. Phase Shifter (x2) 11202 | -3/Armory | System corruption reached 10% 11270 | -3/Armory | P-80 Master assimilated allied Veteran 8j 11274 | -3/Armory | Reached level 30 11311 | -3/Armory | Fabricated P-70 Sage? 11436 | -3/Armory | First assault squad dispatched 11517 | -3/Armory | Spotted B-86 Titan 11560 | -3/Armory | Discovered new exit (range 5) 11571 | -3/Armory | Lost 10 allies 11587 | -3/Armory | Entered Research 11587 | -2/Research | Accompanied by 1 ally 11774 | -2/Research | Identified exit to Garrison 11899 | -2/Research | Entered Garrison 11899 | -2/Garrison | Reached level 31 11912 | -2/Garrison | Garrison Relay disabled 11916 | -2/Garrison | Triggered checkpoint 11993 | -2/Garrison | Discovered new exit (range 5) 12003 | -2/Garrison | Triggered checkpoint 12071 | -2/Garrison | Triggered checkpoint 12103 | -2/Garrison | Triggered checkpoint 12170 | -2/Garrison | Core integrity fell below 50% 12191 | -2/Garrison | Lost 6 allies 12197 | -2/Garrison | Destroyed 11 combat bots 12247 | -2/Garrison | Discovered new exit (range 61) 12247 | -2/Garrison | Discovered new exit (range 48) 12247 | -2/Garrison | Discovered new exit (range 12) 12247 | -2/Garrison | Discovered new exit (range 28) 12266 | -2/Garrison | Rewired Executioner 12269 | -2/Garrison | Rewired Executioner 12281 | -2/Garrison | Triggered checkpoint 12357 | -2/Garrison | Garrison Relay disabled 12376 | -2/Garrison | Triggered checkpoint 12396 | -2/Garrison | Expanded RIF knowledge: Alert ID Control 12426 | -2/Garrison | Garrison Relay disabled 12429 | -2/Garrison | Triggered checkpoint 12446 | -2/Garrison | Identified exit to Access 12446 | -2/Garrison | Identified exit to Research 12467 | -2/Garrison | Entered Access 12467 | -1/Access | Accompanied by 4 allies 12469 | -1/Access | Reached level 32 12469 | -1/Access | Reached level 33 12469 | -1/Access | Upgraded with Utility slot (x1) 12471 | -1/Access | Identified exit to Surface 12550 | -1/Access | Identified exit to Command 12608 | -1/Access | Spotted B-99 Colossus 12630 | -1/Access | Destroyed B-99 Colossus 12660 | -1/Access | Lost 5 allies 12676 | -1/Access | Lost 3 parts (1p2n) 12738 | *** | Escaped! Last Messages --------------- 12701_ Connecting with Garrison Access... >>Seal Access door sealed. 12703_ Director 10a reveals location of EM Surge Trap. 12712_ Dropped Lgt. Antimatter Reactor. 12713_ Acquired Mic. Antimatter Reactor. 12716_ Sneak attack on P-80 Master. 12716_ P-80 Master destroyed. 12718_ K-01 Serf collects debris. 12725_ Plasma Lance follow-up attack on P-80 Master. 12725_ Enh. Force Lance follow-up attack on P-80 Master. 12725_ P-80 Master suffers critical hit (Impale). 12725_ Destroyed Imp. Antigrav System. 12725_ P-80 Master destroyed. 12725_ K-01 Serf collects debris. 12730_ Acquired 30 matter. 12736_ Connecting with Terminal... >>Open(Door) Sealed Barrier opened. 12737_ The Access Shell folds into the floor. Map ----- +----------------------------------------------------+ | #### ! # ##?????????????????????????????????? | | ######## ### ##?????????????????????????????????? | | ## # # ?????????????????????????????????? | | ## # # ?????????????????????????????????? | | ## " # # ?????????????????????????????????? | | ## """ # + ?????????????????????????????????? | | ## """ # # ?????????????????????????????????? | | ## " # # ?????????????????????????????????? | | ## * # ##?????????????????????????????????? | | ## ! # #########################??????????? | | ######+##### #########################??????????? | | |%%!% u ?????????? | | A ![=! ???????????? | | ##################### ""##????????????????? | | ##################### ""##????????????????? | | ???????????????????## ""##????????????????? | | ???????????????????## T##????????????????? | | ???????????????????## ""##????????????????? | | ??????????????????### ""###???????????????? | | ??????????????????### ""###???????????????? | | ??????????????????## ##???????????????? | | ??????????????????### ###???????????????? | | ??????????????????### ###???????????????? | | ???????????????????## ##????????????????? | | ???????????????????## ##????????????????? | | ???????????????????## @" ##????????????????? | | ???????????????????## "" ##????????????????? | | ???????????????????## ##????????????????? | | ???????????????????## ##????????????????? | | ???????????????????## ##????????????????? | | ???????????????????##""""""""""##????????????????? | | ???????????????????##"????????"##????????????????? | | ?????????????????????????????????????????????????? | | ?????????????????????????????????????????????????? | | ?????????????????????????????????????????????????? | | ??????????????????????BB????BB???????????????????? | | ??????????????????????BB????BB???????????????????? | | ?????????????????????????????????????????????????? | | ?????????????????????????????????????????????????? | | ?????????????????????????????????????????????????? | | ?????????????????????????????????????????????????? | | ?????????????????????????????????????????????????? | | ?????????????????????????????????????????????????? | | ?????????????????????????????????????????????????? | | ?????????????????????????????????????????????????? | | ?????????????????????b???????????????????????????? | | ???????????????????g?????????????????????????????? | | ???????????????????g?????????????????????????????? | | ???????????????????g?????????????????????????????? | | ?????????????????????????????????????????????????? | +----------------------------------------------------+ Best States ------------- Heat Dissipation 47 Energy Generation 31 Energy Capacity 280 Matter Stores 300 Matter Capacity 300 Sight Range 18 Terrain Scan Density 10 Armor Coverage 225 Resistance: KI 10 Resistance: TH 10 Resistance: EX 10 Phase Shifting 15 Evasion (%) 91 Melee Accuracy 6 Target Analysis 8 Offensive Hacking 52 Defensive Hacking 35 Relay Coupler Types 6 Relay Coupler Value 393 Authchip Count 3 Item Schematics ----------------- Cld. Nuclear Pulse Thruster | -5/Factory | Scanalyzed Adv. Hacking Suite | -4/Factory | Hacked Adv. System Shield | -4/Factory | Hacked Robot Schematics ------------------ O-24 Administrator | -7/Factory | Hacked P-70 Sage | -6/Factory | Hacked B-60 Warrior | -4/Factory | Hacked Fabricated ------------ P-70 Sage | x2 | -6/Factory | Authchip P-70 Sage | x2 | -6/Factory P-70 Sage | x2 | -6/Factory P-70 Sage | x2 | -4/Factory | Authchip P-70 Sage | x2 | -4/Factory | Authchip P-70 Sage | x2 | -4/Factory | Authchip P-70 Sage | x2 | -3/Research | Authchip P-70 Sage | x2 | -3/Research | Authchip Adv. Phase Shifter | x2 | -3/Armory | Preloaded P-70 Sage | x2 | -3/Armory Repaired ---------- Flight Unit | 50% | -8/Materials Particle Gun | 66% | -8/Materials Structural Scanner | 15% | -8/Materials VTOL Module | 24% | -8/Materials Flight Unit | 60% | -8/Materials Flight Unit | 30% | -7/Factory VTOL Module | 56% | -7/Factory VTOL Module | 12% | -6/Factory VTOL Module | 24% | -6/Factory VTOL Module | 32% | -6/Factory Imp. Flight Unit | 65% | -6/Factory | Broken VTOL Module | 44% | -6/Factory Imp. Flight Unit | 90% | -6/Factory VTOL Module | 56% | -6/Factory Impulse Thruster | 62% | -6/Factory Structural Scanner | 99% | -4/Factory | Broken Mic. Nuclear Core | 62% | -4/Factory Studied --------- Datajack | -9/Materials | Hacked Particle Gun | -9/Materials | Hacked VTOL Module | -5/Factory | Hacked Carbide Saw | -2/Research | Hacked Impulse Thruster | -2/Research | Hacked Q-thruster | -2/Research | Hacked Alien Tech Used ----------------- None Achievements -------------- None Challenges ------------ None RPGLIKE | -11 -10 -10 -9 -9 -9 -8 -8 -8 -8 -7 -7 -6 -6 -6 -6 -5 -5 -4 -4 -3 -3 -3 -2 -2 -1 --------- Run | Yrd Mat Min Mat Min Exi Min Mat Gar Mat Fac Gar Fac Gar Fac Gar Fac Gar Fac Gar Res Gar Arm Res Gar Acc Levels Raised 32 | . . 1 4 . . . 1 2 . 2 2 2 3 1 1 1 2 2 2 1 1 1 . 1 2 XP Earned 52042 | 3000 1330 1350 4850 500 350 600 1500 2150 . 2888 3672 1835 5920 1300 1525 1411 3143 2982 1949 1625 1942 1079 1077 1447 2617 XP Spent 50870 | 3000 . 1300 5850 . . . 1800 3005 . 2975 3040 2880 4595 1500 . 2000 4050 2890 3100 1100 1700 1585 . 1600 2900 Upgrades 82 | 13 . 4 9 . . . 2 6 . 7 4 4 14 3 . 1 2 3 2 1 1 4 . 1 1 Propulsion Slot 5 | 1 . . 2 . . . . . . . . 1 . . . . . . . . 1 . . . . Utility Slot 9 | 1 . 1 1 . . . . 1 . . 1 . . . . 1 1 . 1 . . . . . 1 Weapon Slot 3 | 1 . . . . . . . . . . . . . 1 . . . . . 1 . . . . . Core Integrity 22 | 6 . . . . . . . 3 . 5 2 2 3 . . . . . . . . 1 . . . Heat Dissipation 3 | 1 . . . . . . . 1 . . . . . . . . . 1 . . . . . . . Energy Generation 2 | . . . . . . . . . . . . . . 1 . . . . . . . 1 . . . Energy Storage 1 | . . . . . . . . . . . . . . . . . . . . . . 1 . . . Mass Support 2 | . . 1 . . . . . . . . . . . . . . . . . . . 1 . . . Inventory Capacity 7 | 2 . . 1 . . . 1 1 . 1 . . . . . . 1 . . . . . . . . Sight Range 2 | . . . 1 . . . . . . . . . 1 . . . . . . . . . . . . Ranged Accuracy 3 | 1 . . 1 . . . . . . . . . 1 . . . . . . . . . . . . Melee Accuracy 4 | . . . . . . . . . . . . . 2 1 . . . . 1 . . . . . . Hack Attack % 8 | . . 1 2 . . . . . . 1 1 . 1 . . . . 1 . . . . . 1 . Hack Defense % 5 | . . 1 1 . . . 1 . . . . 1 . . . . . 1 . . . . . . . KI Resistance % 2 | . . . . . . . . . . . . . 2 . . . . . . . . . . . . TH Resistance % 2 | . . . . . . . . . . . . . 2 . . . . . . . . . . . . EX Resistance % 2 | . . . . . . . . . . . . . 2 . . . . . . . . . . . . Protomatter Created 2998 | . 89 156 275 . . . . 68 . 150 93 37 166 120 202 . 82 . 345 186 469 . 53 450 57 Integrity Restored 11902 | . 267 226 579 . . . . 204 . 411 321 111 1249 598 1151 39 693 256 705 983 1318 1061 . 1487 243 Core 10240 | . 267 199 436 . . . . 204 . 411 321 111 1249 513 942 39 693 175 608 853 1190 608 . 1178 243 Parts 1662 | . . 27 143 . . . . . . . . . . 85 209 . . 81 97 130 128 453 . 309 . Protomatter Decayed 2378 | . . 43 77 . . . . . . . 47 . . 249 104 . 262 183 570 140 486 110 . 55 52 Game ------ Seed VortexPersonalArchive Manual? 0 Play Time 04:15:10 Cumulative 70.0 hours Start 2026.03.02 @ 14:04:47 End 2026.03.02 @ 19:41:33 Sessions 3 Manual Loads 0 Difficulty Rogue Special Mode Winter2019/RPGLIKE Game No. 106 Rogue 106 Adventurer 0 Explorer 0 Win Type 0 Total 2 Types 2/0/0/0/0/0/0/0/0/0 Lore% 36 Gallery% 41 Achievement% 32 Wizard Run 0 Options --------- Layout 0 ASCII 1 Keyboard 1 Movement Numpad Keybinds 0 Fullscreen 1 Font 18/VGA_Max Map View 76x50 Zoom Use 0% Tactical HUD 1 Map Filters NONE Filters NONE Steam 1 RUN: b1dab75e-59ba-4769-879e-96eecbbb77bd